Cogmind - Beta 11.1 @@@ ROGUE MODE // 2022.07.07 @ 22:58:39 Player: tkc Result: Destroyed by 8R-AWN with 8R-AWN's Boregun Performance ------------- Evolutions (1) 500 Regions Visited (4) 800 Robots Destroyed (60) 300 Value Destroyed (1327) 1327 Prototype IDs (2) 40 Alien Tech Used (0) 0 Bonus (233) 233 TOTAL SCORE: 3200 Bonus ------- High Alert Combat Kills 73 Follower Combat Kills 160 Cogmind --------- Core Integrity 0/400 Matter 282/300 Energy 100/100 System Corruption 7% Temperature Cool (0) Movement Core (400) Ox7 Location -9/Exiles Parts ------- > --- POWER (1) -------- (None) > --- PROPULSION (2) --- (None) > --- UTILITY (4) ------ Large Storage Unit Energy Filter > --- WEAPON (2) ------- (None) > --- INVENTORY (15) --- Ion Engine Improved Ion Engine Reinforced Deuterium Engine Aluminum Leg Aluminum Leg Aluminum Leg Medium Storage Unit Medium Battery Large Matter Pod (150) Improved Medium Laser Light Cannon Maul Peak State ------------ > --- POWER ------------ Heavy Ion Engine > --- PROPULSION ------- Improved Aluminum Leg Compact Wheel > --- UTILITY ---------- Large Storage Unit Visual Processing Unit Sensor Array Improved Medium Armor Plating > --- WEAPON ----------- Small Laser Light Assault Rifle > --- INVENTORY -------- Ion Engine Improved Ion Engine Light Treads Aluminum Leg Aluminum Leg Medium Storage Unit Medium Battery Large Matter Pod Energy Filter Improved Medium Laser Light Cannon Grenade Launcher Maul [Rating: 18] Favorites ----------- Power Heavy Ion Engine Engine Heavy Ion Engine Propulsion Compact Wheel Treads Light Treads Leg Improved Aluminum Leg Wheel Compact Wheel Utility Visual Processing Unit Device Sensor Array Storage Large Storage Unit Processor Visual Processing Unit Protection Improved Medium Armor Plating Weapon Light Cannon Energy Gun Medium Laser Energy Cannon Light EM Pulse Cannon Ballistic Gun Light Assault Rifle Ballistic Cannon Light Cannon Launcher EMP Blaster Impact Weapon Maul Build | -11 -10 -9 -9 -9 ------- Run | Scr Mat Mat Min Exi Slots Evolved 2 | . . 2 . . Power . | . . . . . Propulsion . | . . . . . Utility 2 | . . 2 . . Weapon . | . . . . . Parts Attached 44 | 7 8 18 8 3 Power 5 | 1 2 2 . . Engine 5 | 1 2 2 . . Core . | . . . . . Reactor . | . . . . . Propulsion 11 | 2 3 4 1 1 Treads 4 | 1 1 1 . 1 Leg 1 | . . 1 . . Wheel 6 | 1 2 2 1 . Hover . | . . . . . Flight . | . . . . . Utility 9 | 2 1 4 1 1 Device 3 | 1 . 1 . 1 Storage 3 | 1 . 2 . . Processor 2 | . 1 1 . . Hackware . | . . . . . Protection 1 | . . . 1 . Artifact . | . . . . . Weapon 19 | 2 2 8 6 1 Energy Gun 4 | 1 1 1 1 . Energy Cannon 2 | . . 1 1 . Ballistic Gun 2 | 1 . . 1 . Ballistic Cannon 2 | . 1 1 . . Launcher 7 | . . 4 2 1 Special Weapon . | . . . . . Impact Weapon 2 | . . 1 1 . Slashing Weapon . | . . . . . Piercing Weapon . | . . . . . Special Melee Weapon . | . . . . . Unidentified Prototypes 2 | . . 2 . . Parts Lost 22 | . 7 3 3 9 Power 4 | . 2 1 . 1 Propulsion 8 | . 2 2 1 3 Utility 3 | . 1 . . 2 Weapon 7 | . 2 . 2 3 Highest Loss Streak 9 | . 3 1 2 9 To Critical Strikes . | . . . . . Average Slot Usage (%) 95 | . 94 89 99 98 Engine 11 | . 13 10 11 11 Treads 4 | . 13 6 . . Leg 6 | . . 3 11 10 Wheel 11 | . 13 9 10 11 Device 9 | . 8 5 11 10 Storage 11 | . 14 11 11 11 Processor 14 | . 3 20 20 10 Protection 3 | . . . 1 10 Energy Gun 7 | . 14 6 2 10 Ballistic Gun 4 | . 5 . 2 10 Ballistic Cannon 6 | . 6 9 8 . Impact Weapon 2 | . . 1 7 . Naked Turns . | . . . . . Heaviest Build 38 | 13 14 35 38 38 Greatest Support 23 | 20 20 23 16 16 Greatest Overweight (x) 11 | . . 2 2 11 Average Overweight (x) 1 | . . . 1 2 Largest Inventory Capacity 15 | 8 8 15 15 15 Average Capacity 11 | 6 8 9 15 15 Most Carried 15 | 8 8 10 14 15 Average Carried 10 | 5 6 8 12 14 Final Capacity 15 | 8 8 15 15 15 Final Carried 14 | 8 8 10 14 12 Class Distribution -------------------- 36% | Mutant 27% | Scavenger-Mutant 23% | Assassin 8% | Skirmisher 4% | Scavenger-Skirmisher Dominant Class ---------------- Mutant | -10/Materials Mutant | -9/Materials Assassin | -9/Mines Scavenger-Mutant | -9/Exiles Resources | -11 -10 -9 -9 -9 ----------- Run | Scr Mat Mat Min Exi Matter Collected 1389 | 315 262 528 283 1 Remotely . | . . . . . Salvage Created 1982 | 178 646 780 327 51 Parts 127 | 21 35 50 21 . Haulers Intercepted 4 | . 1 3 . . Recyclers Shooed 3 | 1 . 2 . . Parts Field Recycled . | . . . . . Retrieved Matter . | . . . . . Parts Self-Destructed . | . . . . . Prevented . | . . . . . Kills | -11 -10 -9 -9 -9 ------- Run | Scr Mat Mat Min Exi Combat Hostiles Destroyed 47 | . 13 18 9 7 Guns 18 | . 11 1 3 3 Cannons 13 | . 2 6 5 . AOE 15 | . . 10 1 4 Classes Destroyed 10 | 2 3 4 . 1 Worker 2 | . . 1 1 . Builder 1 | . . 1 . . Tunneler 5 | 4 . . 1 . Hauler 4 | . 1 3 . . Recycler 5 | 1 1 2 1 . Watcher 3 | . 1 2 . . Swarmer 11 | . . 7 4 . Grunt 25 | . 13 7 5 . Sentry 4 | . . 4 . . Assembled 7 | . . . . 7 Best Kill Streak 7 | 5 6 5 4 7 Combat Bots Only 7 | . 6 5 4 7 Max Kills in Single Turn 4 | 1 1 4 2 2 Gunslinging . | . . . . . Exploded 3 | . . 3 1 2 Melee . | . . . . . Uniques/NPCs Destroyed . | . . . . . Combat | -11 -10 -9 -9 -9 -------- Run | Scr Mat Mat Min Exi Damage Taken 2522 | . 702 684 300 836 Core 554 | . 153 134 75 192 Absorbed by Shields . | . . . . . Core Remaining (%) 69 | 100 38 . . . Volleys Fired 191 | 15 73 63 27 13 Largest 2 | 1 2 2 2 2 Hottest 91 | 20 85 91 91 60 Shots Fired 318 | 15 130 106 44 23 Gun 195 | 15 105 26 28 21 Cannon 102 | . 25 65 12 . Launcher 21 | . . 15 4 2 Special . | . . . . . Kinetic 169 | 15 61 52 28 13 Thermal 114 | . 69 26 11 8 Explosive 11 | . . 9 . 2 Electromagnetic 24 | . . 19 5 . Robot Hit Streak 11 | 4 11 8 10 11 Robot Miss Streak 3 | 2 3 3 1 2 Penetration Max . | . . . . . Secondary Targets 5 | . 3 . . 2 Max Gunslinging Chain 1 | . 1 . . 1 Shots Hit Robots 205 | 10 84 70 25 16 Core Hits 101 | 6 31 37 14 13 Critical Kills . | . . . . . Critical Parts Destroyed 1 | . . . 1 . Critical Strikes 5 | . 2 2 1 . Burn 3 | . 2 1 . . Blast 1 | . . 1 . . Smash 1 | . . . 1 . Melee Attacks 28 | . . 5 23 . Impact 28 | . . 5 23 . Slashing . | . . . . . Piercing . | . . . . . Sneak Attacks 1 | . . . 1 . Combat Hostiles . | . . . . . Follow-up Attacks . | . . . . . Damage Inflicted 3756 | 127 1150 1597 523 359 Guns 1604 | 127 940 231 161 145 Cannons 1095 | . 210 795 90 . Explosions 961 | . . 571 176 214 Melee 96 | . . . 96 . Ramming . | . . . . . Kinetic 1475 | 127 541 575 154 78 Thermal 1038 | . 609 231 131 67 Explosive 570 | . . 356 . 214 Electromagnetic 577 | . . 435 142 . Impact 96 | . . . 96 . Slashing . | . . . . . Piercing . | . . . . . Highest Corruption 7 | . . 2 2 7 Average Corruption 2 | . . 2 2 2 Corruption Purged . | . . . . . Corruption Blocked . | . . . . . Effects 24 | . . 5 11 8 Message Errors 8 | . . 3 3 2 Matter Fused 3 | . . . 3 . Heat Flow Errors 1 | . . . 1 . Energy Discharges 2 | . . . 1 1 Parts Rejected 1 | . . . 1 . Data Loss (minor) 5 | . . . 2 3 Data Loss (major) 2 | . . 1 . 1 Misfires 2 | . . 1 . 1 Overload Shots . | . . . . . Overflow Damage 143 | . . 12 96 35 Projectiles 8 | . . 8 . . Explosions 39 | . . 4 . 35 Melee 96 | . . . 96 . Knockbacks 9 | . 5 3 1 . Impact 1 | . . . 1 . Kinetic 8 | . 5 3 . . Secondary . | . . . . . Self-Inflicted Damage 125 | . . 54 . 71 Shots 5 | . . 3 . 2 Rammed . | . . . . . Targets Rammed . | . . . . . Kicked . | . . . . . Crushed . | . . . . . Highest Temperature 285 | . 285 189 141 100 Average Temperature 61 | . 79 50 25 45 Received Heat Transfer 839 | . 387 282 90 80 Siege Activations . | . . . . . Robots Corrupted 1 | . . 1 . . Combat Hostiles 1 | . . 1 . . Parts Fried 2 | . . . 2 . Impact Corruptions 1 | . . . 1 . Robots Melted . | . . . . . Combat Hostiles . | . . . . . Parts Melted 4 | . 3 . 1 . Heat Transferred 3089 | . 1961 703 275 150 Parts Sabotaged . | . . . . . Parts Stolen . | . . . . . Parts Stripped . | . . . . . Power Chain Reactions 2 | . . 1 1 . Missiles Intercepted . | . . . . . Alert | -11 -10 -9 -9 -9 ------- Run | Scr Mat Mat Min Exi Peak Influence 569 | 25 240 569 259 . Initial 139 | . 16 58 139 . Average 221 | 16 144 352 172 . Maximum Alert Level 2 | . 1 2 1 . Low Security (%) 49 | 100 65 14 67 . Level 1 30 | . 34 32 32 . Level 2 19 | . . 52 . . Level 3 . | . . . . . Level 4 . | . . . . . Level 5 . | . . . . . High Security . | . . . . . Max Security . | . . . . . Squads Dispatched 9 | . 4 4 1 . Investigation 4 | . 1 2 1 . Extermination . | . . . . . Reinforcement 5 | . 3 2 . . Assault . | . . . . . Garrison . | . . . . . Intercept . | . . . . . Searches Triggered . | . . . . . Construction Impeded . | . . . . . Haulers Reinforced . | . . . . . Active Scanning Responses . | . . . . . Cargo Convoy Interrupts . | . . . . . Stealth | -11 -10 -9 -9 -9 --------- Run | Scr Mat Mat Min Exi Distress Signals 2 | . 1 1 . . Communications Jammed . | . . . . . Distress Signals . | . . . . . Times Spotted 72 | . 22 27 15 8 Peak Tracking Total 9 | . 6 6 4 9 Tactical Retreats 4 | . . 1 2 1 Traps | -11 -10 -9 -9 -9 ------- Run | Scr Mat Mat Min Exi Traps Triggered 4 | . 1 3 . . Indirectly . | . . . . . Trap Hack Attempts . | . . . . . Triggered . | . . . . . Disarmed . | . . . . . Reprogrammed . | . . . . . Reused . | . . . . . Traps Extracted . | . . . . . Installed . | . . . . . Triggered . | . . . . . Machines | -11 -10 -9 -9 -9 ---------- Run | Scr Mat Mat Min Exi Machines Disabled 2 | . . 1 1 . Max in Single Turn 1 | . . 1 1 . Machines Sabotaged . | . . . . . Garrisons Compromised . | . . . . . Overloaded Fab Kills . | . . . . . Hacking | -11 -10 -9 -9 -9 --------- Run | Scr Mat Mat Min Exi Machines Accessed 6 | . 1 3 1 1 Terminals 4 | . 1 3 . . Fabricators . | . . . . . Repair Stations . | . . . . . Recycling Units . | . . . . . Scanalyzers . | . . . . . Garrison Access . | . . . . . Total Hacks 34 | . 1 9 1 23 Successful 30 | . . 6 1 23 Failed 4 | . 1 3 . . Catastrophic . | . . . . . Database Lockouts . | . . . . . Manual 9 | . 1 8 . . Terminals 10 | . 1 9 . . Fabricators . | . . . . . Repair Stations . | . . . . . Recycling Units . | . . . . . Scanalyzers . | . . . . . Garrison Access . | . . . . . Terminal Hacks 29 | . . 5 1 23 Record 23 | . . . . 23 Open Door 1 | . . . 1 . Level Access Points 1 | . . 1 . . Branch Access Points 1 | . . 1 . . Terminal Index 1 | . . 1 . . Alert Level 1 | . . 1 . . Unreport Threat 1 | . . 1 . . Fabricator Hacks . | . . . . . Repair Station Hacks . | . . . . . Recycling Unit Hacks . | . . . . . Scanalyzer . | . . . . . Garrison Access Hacks . | . . . . . Unauthorized Hacks 1 | . . 1 . . Terminals 1 | . . 1 . . Botnet 1 | . . 1 . . Fabricators . | . . . . . Repair Stations . | . . . . . Recycling Units . | . . . . . Scanalyzers . | . . . . . Garrison Access . | . . . . . Data Cores Recovered . | . . . . . Used . | . . . . . Hacking Detections 3 | . 1 2 . . Full Trace Events . | . . . . . Feedback Events . | . . . . . Feedback Blocked . | . . . . . Robot Schematics Acquired . | . . . . . Robots Built . | . . . . . Authchips . | . . . . . Time . | . . . . . Total Robot Build Rating . | . . . . . Part Schematics Acquired . | . . . . . Parts Built . | . . . . . Authchips . | . . . . . Time . | . . . . . Total Part Build Rating . | . . . . . Parts Repaired . | . . . . . Time . | . . . . . Parts Recycled . | . . . . . Recycled Matter . | . . . . . Retrieved Matter . | . . . . . Retrieved Components . | . . . . . Parts Scanalyzed . | . . . . . Part Schematics Acquired . | . . . . . Parts Damaged . | . . . . . Bothacking | -11 -10 -9 -9 -9 ------------ Run | Scr Mat Mat Min Exi Used RIF Installer . | . . . . . Robots Hacked . | . . . . . Non-combat . | . . . . . Combat . | . . . . . Robot Hacks Applied . | . . . . . Relay Couplers Released . | . . . . . Fabnet Peak Effective % . | . . . . . Robots Rewired . | . . . . . Allies Hacked . | . . . . . Hacks Repelled . | . . . . . Allies | -11 -10 -9 -9 -9 -------- Run | Scr Mat Mat Min Exi Total Allies 3 | . . . 3 . Largest Group 3 | . . . 3 . Highest-Rated Group 40 | . . . 40 . Highest-Rated Ally 16 | . . . 16 . Total Orders . | . . . . . Ally Attacks 30 | . . . 30 . Total Damage 330 | . . . 330 . Kills 6 | . . . 6 . Allies Corrupted . | . . . . . Allies Melted . | . . . . . Intel | -11 -10 -9 -9 -9 ------- Run | Scr Mat Mat Min Exi Robot Analysis Total . | . . . . . Derelict Logs Recovered . | . . . . . Drone Launches . | . . . . . Drone Recoveries . | . . . . . Exploration | -11 -10 -9 -9 -9 ------------- Run | Scr Mat Mat Min Exi Turns Passed 3026 | 156 529 838 743 760 Spaces Moved 1452 | 106 276 482 308 280 Core 4 | 3 . . . 1 Treads 116 | 4 24 88 . . Legs 305 | . . . 32 273 Wheels 1027 | 99 252 394 276 6 Hover . | . . . . . Flight . | . . . . . Fastest Speed 50 | 50 100 100 115 130 Average Speed 147 | 100 105 120 143 258 Slowest Speed 600 | 160 160 160 260 600 Overloaded Moves . | . . . . . Propulsion Burnouts . | . . . . . Robots Hopped . | . . . . . Cave-ins Triggered . | . . . . . Exploration Rate (%) 39 | 5 39 50 38 66 Regions Visited 4 Branch Regions 2 Pre-discovered Areas 1 | . . . . 1 Known Exits Taken 1 | . . 1 . . Unknown Exits Taken 3 | 1 1 . 1 . Scrap Searched 1 | . . . 1 . Spaces Dug 10 | . . 5 5 . Terrain Destroyed 85 | . . 63 6 16 Melee 10 | . . 5 5 . Projectile . | . . . . . AOE 75 | . . 58 1 16 Terrain Rammed . | . . . . . Walls Destroyed . | . . . . . Machines Disabled . | . . . . . Actions | -11 -10 -9 -9 -9 --------- Run | Scr Mat Mat Min Exi Total 1962 | 137 384 621 523 297 Wait 207 | . 20 38 149 . Move 1448 | 105 275 481 307 280 Hop . | . . . . . Pick Up 31 | 9 6 7 8 1 Fast Attach 15 | 7 2 5 1 . Attach 14 | . 5 2 4 3 Detach 1 | . . . 1 . Swap 15 | . 1 11 3 . Drop 12 | 1 2 9 . . Fire 191 | 15 73 63 27 13 Melee 28 | . . 5 23 . Ram . | . . . . . Kick . | . . . . . Crush . | . . . . . Escape Stasis . | . . . . . Rewire . | . . . . . Trap . | . . . . . Miscellaneous . | . . . . . Route ------- -11/Scrapyard -10/Materials (discovered 2 exits: *Mat / [*Min]) -9/Materials (discovered 4 exits: *Mat x3 / *Min) -9/Mines -9/Exiles (discovered 1 exit: [*Min]) History --------- Turn | Location | Event 18 | -11/Scrapyard | Discovered new exit (range 16) 157 | -11/Scrapyard | Entered Materials 310 | -10/Materials | Build established: Mutant 310 | -10/Materials | Discovered new exit (range 15) 421 | -10/Materials | Lost 3 parts (1p2w) 487 | -10/Materials | Core integrity fell below 50% 555 | -10/Materials | Discovered new exit (range 8) 686 | -10/Materials | Entered another Materials area 686 | -9/Materials | Evolved 2 slots: Utility x2 1248 | -9/Materials | Identified exit to Mines 1265 | -9/Materials | Identified exit to Materials 1524 | -9/Materials | Entered Mines 1526 | -9/Mines | Met a Derelict bent on vengeance 1592 | -9/Mines | Met a Derelict shopkeep closing up shop 1677 | -9/Mines | Build established: Assassin 1781 | -9/Mines | Excavation squad dispatched 1781 | -9/Mines | A large section of the Mines collapsed 1922 | -9/Mines | Assisted by bots powering up and referring to "LRC-V3" 2031 | -9/Mines | Excavation squad dispatched 2127 | -9/Mines | Core integrity fell below 50% 2254 | -9/Mines | Deemed a non-threat by the Exiles lab entrance 2254 | -9/Mines | Discovered new exit (range 5) 2267 | -9/Mines | Entered Exiles 2310 | -9/Exiles | Discovered new exit (range 16) 2344 | -9/Exiles | Met 8R-AWN 2388 | -9/Exiles | Met EX-HEX 2476 | -9/Exiles | Build established: Scavenger-Mutant 2492 | -9/Exiles | Met EX-DEC 2560 | -9/Exiles | Learned location of Zion (-6) 2680 | -9/Exiles | Visited The Gauntlet 2972 | -9/Exiles | Attacked by the Exiles 3026 | -9/Exiles | Core integrity fell below 20% 3027 | -9/Exiles | Destroyed by 8R-AWN with 8R-AWN's Boregun Last Messages --------------- 03013_ Penetrated by HV Slug. 03013_ HV Slug penetrates Components. 03013_ Components damaged. 03013_ Penetrated by HV Slug. 03013_ HV Slug penetrates Wall. 03014_ System corrupted: Component data lost. 03016_ Acquired 1 matter. 03017_ Penetrated by HV Slug. 03017_ HV Slug penetrates Wall. 03017_ Penetrated by HV Slug. 03017_ HV Slug penetrates Wall. 03019_ Penetrated by HV Slug. 03019_ HV Slug penetrates Machine. 03019_ Machine disabled. 03019_ Penetrated by HV Slug. 03021_ Com. Wheel destroyed. 03023_ Hvy. Ion Engine destroyed. 03023_ Lgt. Treads destroyed. 03023_ Grenade Launcher destroyed. 03025_ Penetrated by HV Slug. Map ----- +----------------------------------------------------+ | ???????????????? "#?????????????????????????????? | | ???????????????? ""??????????????????????????????? | | ##????????????? "???????????????????????????????? | | #???????????? #???????????????????????????????? | | #####?????## ###?????????????????????????????? | | """#####X# #"###"??????????????????????????? | | """""" " "??????????????#???#??? | | "" """ " ?????? #####""""""""" | | " " ??? " """ """ | | ## ?? "" " | | ?### ?? " " | | ???## ?? " | | ????## ??? " | | ?????##" ??? | | ??????#""" """????? | | ?????##" ###?????? | | ?????#"" ""##????????#""" | | ????##""" """##??????????#""" | | ????#""" """##???????????#"""" | | ????#""" ""#???????????##"" | | ????#"" ########??####"""" | | ????#""" ##aaa####""" | | ????#"" """" | | ????##"" | | ?????#"""" %% | | ?????## @ g " | | ??????#" """ | | ??????#"""" ""% % # " " " ""#" | | ??????#"" ""## ####""" """##""" | | ??????#" """"### #??###""""###### | | ??????#""" """#?# #????######????? | | ??????## ""##?##! "!#?????????????? | | ???????#"" """##???# !#?????????????? | | ???????##""" ##????# "#?????????????? | | ????????##"""" ##?????#!!""!"#?????????????? | | ?????????### #??????########?????????????? | | ???????????##### ##???????????????????????????? | | ???????????????## #????????????????????????????? | | ????????????????# #????????????????????????????? | | ????????????????# #????????????????????????????? | | ????????????????# #????????????????????????????? | | #?????#####?????# #????????????????????????????? | | ""#??#"""""""???# #????????????????????????????? | | ""#??#"""""""#??# #????????????????????????????? | | "#??#" """"#??# #????????????????????????????? | | ""#??#"" """#??# #????????????????????????????? | | ""????"" ""???# #????????????????????????????? | | ########"""###### ########?????????????????????? | | """""""" """""" """""""#?????????????????????? | | """"""" "#"" ""????????????????? | +----------------------------------------------------+ Best States ------------- Heat Dissipation 28 Energy Generation 14 Energy Capacity 280 Matter Stores 300 Matter Capacity 300 Sight Range 18 Robot Scan Range 14 Terrain Scan Density 10 Armor Coverage 225 Evasion (%) 40 Recoil Reduction 1 Energy Filtering 30 Item Schematics ----------------- None Robot Schematics ------------------ None Fabricated ------------ Nothing Alien Tech Used ----------------- None Achievements -------------- None Challenges ------------ None Game ------ Seed FlakFlyingMapper Manual? 0 Play Time 00:39:50 Cumulative 27.7 hours Start 2022.07.07 @ 22:18:52 End 2022.07.07 @ 22:58:39 Sessions 1 Manual Loads 0 Difficulty Rogue Special Mode None Game No. 22 Rogue 21 Adventurer 0 Explorer 1 Win Type - Total 0 Types 0/0/0/0/0/0/0/0/0 Lore% 16 Gallery% 20 Achievement% 16 Wizard Run 0 Options --------- ASCII 0 Keyboard 0 Movement Mouse Keybinds 0 Fullscreen 1 Font 36/Terminus Map View 76x50 Tactical HUD 1 Map Filters NONE Filters NONE Steam 1 RUN: 44da5669-88c3-49ee-8a2f-7552ac53c3b6